bitfinex/quotes_ETHUSD_20230405
["timestamp","ask_amount","ask_price","bid_price","bid_amount"]
[1680653869755,0.11000001,1869.7,1869.5,16.51839112]
[1680653869956,0.11000001,1869.7,1869.6,14.98170129]
[1680653870273,0.11000001,1869.7,1869.6,14.98370129]
[1680653870773,0.11000001,1869.7,1869.6,15.37117597]
[1680653874573,0.11000001,1869.7,1869.6,15.90805989]
[1680653875462,0.10197691,1869.7,1869.6,15.90805989]
[1680653879145,0.10197691,1869.7,1869.6,18.40805989]
[1680653880254,0.11000001,1869.8,1869.7,2.34080599]
[1680653880455,1e-08,1869.8,1869.7,15.26566817]
[1680653880682,1e-08,1869.8,1869.7,18.26766817]
[1680653881179,1e-08,1869.8,1869.7,18.28959203]
[1680653881682,0.11000001,1869.9,1869.7,18.28959203]
[1680653881888,0.11000001,1869.9,1869.8,13.47398138]
[1680653882181,0.11000001,1869.9,1869.8,16.31163138]
[1680653882568,1e-08,1869.9,1869.8,21.08143138]
[1680653882768,1e-08,1869.9,1869.8,21.42923721]
[1680653884128,1e-08,1869.9,1869.8,56.42923721]
[1680653885687,2e-08,1870.0,1869.8,59.64823721]
[1680653886003,2e-08,1870.0,1869.9,14.33111893]
[1680653886324,2e-08,1870.0,1869.9,18.70811893]
[1680653886693,0.11000001,1870.2,1869.9,18.70811893]
[1680653886908,0.11000001,1870.2,1870.1,8.41502218]
[1680653887089,0.11000001,1870.2,1870.1,13.33140218]
[1680653887280,0.11000001,1870.2,1870.1,14.98324129]
[1680653887906,0.11000001,1870.2,1870.1,14.97494885]
[1680653889244,0.11000001,1870.2,1870.1,14.99686802]
[1680653889388,0.11000001,1870.2,1870.1,19.86326802]
[1680653889588,0.11000001,1870.2,1870.1,20.24912236]
[1680653893601,0.11000001,1870.2,1870.1,20.79543447]
[1680653894615,0.11000001,1870.2,1870.1,55.79543447]
[1680653894830,0.11000001,1870.2,1870.1,56.94643447]
[1680653895015,0.06000001,1870.2,1870.1,56.94643447]
[1680653896569,0.06000001,1870.2,1870.1,55.79543447]
[1680653905979,0.06000001,1870.2,1870.1,55.93047408]
[1680653910562,1e-08,1870.2,1870.1,59.14947408]
[1680653911101,1e-08,1870.2,1870.1,59.41695514]
[1680653912768,1e-08,1870.2,1870.1,61.61695514]
[1680653912969,0.11000001,1870.7,1870.4,5.649]
[1680653913170,0.11000001,1870.7,1870.6,10.41502218]
[1680653913373,0.11000001,1870.7,1870.6,15.33095218]
[1680653914613,1.26100001,1870.7,1870.6,13.65758218]
[1680653915045,1.26100001,1870.7,1870.6,14.13870218]
[1680653915214,1.26100001,1870.7,1870.6,14.5148224]
[1680653915424,0.11000001,1870.7,1870.6,13.5525724]
[1680653915943,0.11000001,1870.7,1870.6,13.57448571]
[1680653916650,0.11000001,1870.7,1870.6,14.15336784]
[1680653921462,0.11000001,1870.7,1870.6,14.69534218]
[1680653923575,1.26100001,1870.7,1870.6,9.30787865]
[1680653923737,1.26100001,1870.7,1870.6,8.76590431]
[1680653924084,1.26100001,1870.7,1870.6,9.00646431]
[1680653924272,1.26900001,1870.7,1870.6,0.35088213]
[1680653924439,1.26100001,1870.7,1870.6,0.34888213]
[1680653924638,1.26900001,1870.7,1870.6,0.34888213]
[1680653925171,2.67300001,1870.7,1870.6,0.34888213]
[1680653925402,2.67300001,1870.7,1870.4,2.9]
[1680653925403,3.46682001,1870.7,1870.4,2.9]
[1680653925569,5.18,1870.4,1870.2,0.002]
[1680653925741,2.812,1870.3,1869.8,0.460423]
[1680653925937,1.14,1869.9,1869.8,0.701093]
[1680653926249,1.14,1869.9,1869.8,0.941753]
[1680653926471,1.14,1869.9,1869.8,3.70777518]
[1680653926965,1.151,1870.0,1869.8,10.5626527]
[1680653927165,1.151,1870.0,1869.9,8.41502218]
[1680653927357,1.151,1870.0,1869.9,8.66367218]
[1680653927560,1.151,1870.0,1869.9,8.42302218]
[1680653927998,1.151,1870.0,1869.9,8.65302218]
[1680653928479,1.151,1870.0,1869.9,3.00402218]
[1680653928679,1.151,1870.0,1869.9,9.35810345]
[1680653928986,1.144,1870.1,1869.9,9.36010345]
[1680653929196,1.144,1870.1,1870.0,0.23]
[1680653929401,1.144,1870.1,1870.0,8.64502218]
[1680653929545,1.144,1870.1,1870.0,8.88766218]
[1680653929745,1.144,1870.1,1870.0,8.64702218]
[1680653930388,1.144,1870.1,1870.0,8.88766218]
[1680653930589,1.144,1870.1,1870.0,2.99802218]
[1680653930760,1.144,1870.1,1870.0,2.99602218]
[1680653931299,1.144,1870.1,1870.0,8.41502218]
[1680653931461,1.144,1870.1,1870.0,8.65766218]
[1680653931861,1.143,1870.4,1870.0,10.2894384]
[1680653932091,1.141,1870.4,1870.2,5.649]
[1680653932300,1.141,1870.4,1870.3,12.13682218]
[1680653932466,1.141,1870.4,1870.3,9.36882218]
[1680653932672,1.141,1870.4,1870.3,13.4025504]
[1680653932893,10.7691,1870.6,1870.3,13.4025504]
[1680653933368,1.146,1870.6,1870.3,13.4085504]
[1680653933695,0.11800001,1870.7,1870.3,13.4085504]
[1680653933696,0.11000001,1870.7,1870.6,6.37068]
[1680653933857,0.11000001,1870.7,1870.6,12.87199818]
[1680653934904,0.11000001,1870.7,1870.6,13.10199818]
[1680653935310,0.11000001,1870.7,1870.6,16.20199818]
[1680653936414,0.11000001,1870.7,1870.6,16.20799818]
[1680653938897,0.11000001,1870.7,1870.6,16.20199818]
[1680653939202,0.11000001,1870.7,1870.6,15.97799818]
[1680653940544,0.11000001,1870.7,1870.6,16.20799818]
[1680653942749,1.26100001,1870.7,1870.6,3.108]
[1680653943040,1.26100001,1870.7,1870.6,0.004]
[1680653943245,1.26100001,1870.7,1870.2,0.48723]
[1680653943452,1.151,1870.4,1870.3,3.00661218]
[1680653943744,1.151,1870.4,1870.3,9.14281218]
[1680653944044,1.151,1870.4,1870.3,10.0592934]
[1680653944251,1.151,1870.4,1870.3,13.0592934]
[1680653944606,1.151,1870.4,1870.3,10.0592934]
[1680653944806,1.14,1870.6,1870.3,10.0592934]
[1680653945002,1.14,1870.6,1870.3,10.0572934]
[1680653945207,1.14,1870.6,1870.5,5.649]
[1680653945402,1.13722705,1870.6,1870.5,9.36874218]
[1680653946020,1.13722705,1870.6,1870.5,12.36874218]
[1680653946214,1.13722705,1870.6,1870.5,12.37474218]
[1680653946716,1.13722705,1870.6,1870.5,12.67894461]
[1680653947249,1.13722705,1870.6,1870.5,12.67294461]
[1680653947430,1.13722705,1870.6,1870.5,12.67894461]
[1680653948660,0.11000001,1870.7,1870.5,14.04741201]
[1680653948876,0.11000001,1870.7,1870.6,11.64502218]
[1680653949030,0.11000001,1870.7,1870.6,11.88758218]
[1680653949238,0.11000001,1870.7,1870.6,11.88958218]
[1680653950026,0.11000001,1870.7,1870.6,11.88758218]
[1680653950227,0.11000001,1870.7,1870.6,12.36870218]
[1680653950474,0.11000001,1870.7,1870.6,13.74301914]
[1680653950833,0.11000001,1870.7,1870.6,13.74501914]
[1680653951563,0.11000001,1870.7,1870.6,8.09601914]
[1680653951763,2.41200001,1870.7,1870.6,0.008]
[1680653951983,2.67927001,1870.7,1870.4,0.006]
[1680653952153,1.144,1870.5,1870.4,2.76602218]
[1680653952469,1.144,1870.5,1870.4,2.77202218]
[1680653953039,1.144,1870.5,1870.4,2.76602218]
[1680653953353,1.144,1870.5,1870.3,2.008]
[1680653953548,1.151,1870.4,1870.3,4.76602218]
[1680653954054,1.151,1870.4,1870.3,4.76802218]
[1680653954220,1.151,1870.4,1870.3,7.76802218]
[1680653954546,1.151,1870.4,1870.3,7.77202218]
[1680653955433,1.151,1870.4,1870.3,7.77002218]
[1680653956399,0.32768201,1870.7,1870.3,15.1722854]
[1680653956400,1.151,1870.5,1870.3,15.1722854]
[1680653956547,1.151,1870.5,1870.4,8.41502218]
[1680653956885,1.151,1870.5,1870.4,8.65761218]
[1680653957389,1.151,1870.5,1870.4,8.41702218]
[1680653959507,1.151,1870.5,1870.4,10.11652972]
[1680653959711,1.151,1870.5,1870.4,2.76802218]
[1680653959912,1.151,1870.5,1870.4,2.76602218]
[1680653960402,1.151,1870.5,1870.3,5.008]
[1680653960615,1.143,1870.4,1870.3,2.002]
[1680653960763,1.143,1870.4,1870.3,2.0]
[1680653961394,1.25400001,1870.7,1870.3,5.00662218]
[1680653961605,1.151,1870.5,1870.3,5.00862218]
[1680653962809,1.151,1870.5,1870.3,6.4231074]
[1680653967995,1.14726412,1870.5,1870.3,6.4231074]
[1680653968725,1.14726412,1870.5,1870.3,6.1825074]
[1680653968894,1.14726412,1870.5,1870.3,6.4230974]
[1680653969945,1.14726412,1870.5,1870.3,6.1825074]
[1680653970525,1.14726412,1870.5,1870.3,6.4230974]
[1680653971059,1.14726412,1870.5,1870.3,6.1825074]
[1680653971353,1.14726412,1870.5,1870.3,3.65707522]
[1680653971659,1.14726412,1870.5,1870.3,2.24059]
[1680653975867,1.151,1870.6,1870.4,0.28374443]
[1680653976476,1.151,1870.6,1870.5,0.411]
[1680653977167,1.151,1870.6,1870.5,0.40713501]
[1680653978093,1.2771,1870.6,1870.5,0.40713501]
[1680653978394,1.2771,1870.6,1870.1,0.1316988]
[1680653978395,1.54439,1870.6,1870.1,0.1316988]
[1680653978553,1.143,1870.3,1870.1,0.1316988]
[1680653979872,1.143,1870.3,1870.0,0.232]
[1680653980073,0.1143,1870.2,1870.0,0.232]
[1680653981068,1.143,1870.3,1870.0,0.47264]
[1680653981257,1.143,1870.3,1870.0,3.71994218]
[1680653982162,1.151,1870.4,1870.0,3.71994218]
[1680653988022,9.3454,1870.6,1870.3,5.649]
[1680653988226,9.3454,1870.6,1870.5,0.72172]
[1680653988227,0.002,1870.6,1870.5,0.72172]
[1680653988391,0.11000001,1870.7,1870.5,3.00659218]
[1680653988993,0.11000001,1870.7,1870.5,3.23959218]
[1680653989222,0.11000001,1870.7,1870.5,4.2332584]
[1680653989576,0.11000001,1870.7,1870.5,4.7144084]
[1680653991591,0.11000001,1870.7,1870.6,8.67389152]
[1680653991929,0.11000001,1870.7,1870.6,9.62757152]
[1680653992130,0.11000001,1870.7,1870.6,12.62757152]
[1680653992284,0.11000001,1870.7,1870.6,14.01359529]
[1680653993731,0.11000001,1870.7,1870.6,8.13459529]
[1680653994134,0.11000001,1870.7,1870.6,14.7677586]
[1680653994364,0.11000001,1870.7,1870.6,14.9977586]
[1680653994510,0.11000001,1870.7,1870.6,15.54300353]
[1680653994861,0.11000001,1870.7,1870.6,25.37920353]
[1680653995718,0.11000001,1870.7,1870.6,25.38520353]
[1680653998030,0.11000001,1870.7,1870.6,26.53620353]
[1680653998242,0.11000001,1870.7,1870.6,26.53020353]
[1680653998742,0.11000001,1870.7,1870.6,26.53220353]
[1680653998942,0.11000001,1870.7,1870.6,26.53020353]
[1680653999144,0.11000001,1870.7,1870.6,26.53620353]
[1680654001113,0.11000001,1870.9,1870.8,5.649]
[1680654001434,0.11000001,1870.9,1870.8,12.23077218]
[1680654001759,0.11000001,1870.9,1870.8,15.23077218]
[1680654001955,0.11000001,1870.9,1870.8,19.97107218]
[1680654004875,0.11000001,1870.9,1870.8,21.14398315]
[1680654005037,0.11000001,1870.9,1870.8,23.7874845]
[1680654005244,0.11000001,1870.9,1870.8,22.6364845]
[1680654006782,0.11000001,1870.9,1870.8,22.88997241]
[1680654010581,0.11000001,1870.9,1870.8,22.65997241]
[1680654011843,0.11000001,1870.9,1870.8,22.88997241]
[1680654012274,0.11000001,1870.9,1870.8,22.86806144]
[1680654012478,0.11000001,1870.9,1870.8,19.86806144]
[1680654012716,0.11000001,1870.9,1870.8,17.22456009]
[1680654013028,1.25100001,1870.9,1870.8,4.92151009]
[1680654013256,1.25100001,1870.9,1870.8,5.64111009]
[1680654013385,1.25100001,1870.9,1870.8,5.16204009]
[1680654013912,1.25100001,1870.9,1870.8,4.92151009]
[1680654014094,1.25100001,1870.9,1870.8,5.16004009]
[1680654014293,1.25100001,1870.9,1870.8,5.16204009]
[1680654014709,1.25100001,1870.9,1870.8,4.92151009]
[1680654014931,1.25100001,1870.9,1870.8,4.91951009]
[1680654015081,0.11000001,1870.9,1870.8,4.91951009]
[1680654015429,0.11000001,1870.9,1870.8,5.16004009]
[1680654015627,0.11000001,1870.9,1870.8,8.64311009]
[1680654015999,0.11000001,1870.9,1870.8,8.87311009]
[1680654016200,0.11000001,1870.9,1870.8,16.0937411]
[1680654020946,0.11000001,1870.9,1870.8,16.11565207]
[1680654022242,0.11000001,1870.9,1870.8,17.31565207]
[1680654022750,0.10740476,1870.9,1870.8,17.31565207]
[1680654023198,0.10740476,1870.9,1870.8,14.08565207]
[1680654023397,0.10740476,1870.9,1870.8,12.49211009]
[1680654024027,0.10740476,1870.9,1870.8,12.01104009]
[1680654024999,0.10740476,1870.9,1870.8,9.36204009]
[1680654025238,0.10740476,1870.9,1870.8,15.01104009]
[1680654025450,0.10740476,1870.9,1870.8,15.24104009]
[1680654025650,0.10740476,1870.9,1870.8,9.59204009]
[1680654027502,0.10740476,1870.9,1870.8,6.12151009]
[1680654028116,1.37514524,1870.9,1870.8,3.35548791]
[1680654028316,1.38314524,1870.9,1870.8,3.35348791]
[1680654028515,1.38314524,1870.9,1870.8,0.25348791]
[1680654028717,1.65039524,1870.9,1870.8,0.25348791]
[1680654029030,1.38314524,1870.9,1870.8,0.25348791]
[1680654031012,1.65039524,1870.9,1870.8,0.25348791]
[1680654031648,1.38314524,1870.9,1870.8,0.25348791]
[1680654031825,1.65039524,1870.9,1870.8,0.25348791]
[1680654032160,1.38314524,1870.9,1870.8,0.25348791]
[1680654032363,1.25740476,1870.9,1870.8,0.25348791]
[1680654032858,1.25740476,1870.9,1870.8,0.36115088]
[1680654033026,1.25740476,1870.9,1870.8,0.60168088]
[1680654035766,0.11540476,1870.9,1870.8,3.59770306]
[1680654035929,0.11540476,1870.9,1870.8,0.60168088]
[1680654037164,0.11540476,1870.9,1870.8,1.08275088]
[1680654037316,0.11540476,1870.9,1870.8,7.11616615]
[1680654037521,0.11540476,1870.9,1870.8,7.11816615]
[1680654038261,0.10740476,1870.9,1870.8,7.11816615]
[1680654039816,0.10740476,1870.9,1870.8,7.34816615]
[1680654040016,0.10740476,1870.9,1870.8,12.99716615]
[1680654042444,0.10740476,1870.9,1870.8,6.86709615]
[1680654042767,0.10740476,1870.9,1870.8,6.36970306]
[1680654042932,0.10740476,1870.9,1870.8,6.12917306]
[1680654043479,0.10740476,1870.9,1870.8,3.36315088]
[1680654043681,0.10740476,1870.9,1870.8,0.36115088]
[1680654044236,1.51665476,1870.9,1870.8,0.36115088]
[1680654044449,1.40907024,1870.9,1870.8,0.36115088]
[1680654044782,1.40907024,1870.9,1870.6,0.24055]
[1680654044961,1.25740476,1870.9,1870.7,2.76602218]
[1680654045676,1.25740476,1870.9,1870.8,0.35851612]
[1680654046847,1.24700051,1870.9,1870.8,0.35851612]
[1680654047181,1.39842456,1870.9,1870.8,0.35851612]
[1680654050652,1.24700051,1870.9,1870.8,0.35851612]
[1680654051052,0.10500051,1870.9,1870.8,9.7251383]
[1680654051274,0.10500051,1870.9,1870.8,9.2460683]
[1680654051589,0.10500051,1870.9,1870.8,3.5970683]
[1680654051885,0.10500051,1870.9,1870.8,4.00348513]
[1680654053184,0.10500051,1870.9,1870.8,3.76295513]
[1680654053555,0.10500051,1870.9,1870.8,3.53295513]
[1680654053757,0.10500051,1870.9,1870.8,3.1245383]
[1680654054342,0.10500051,1870.9,1870.8,0.35851612]
[1680654054889,1.24700051,1870.9,1870.8,0.35851612]
[1680654064011,5.139,1870.8,1870.2,0.002]
[1680654064215,1.141,1870.3,1869.9,2.83300167]
[1680654064376,1.142,1870.2,1870.1,0.24061]
[1680654064587,1.142,1870.2,1869.9,1.62976167]
[1680654064792,1.142,1870.2,1870.0,0.33336574]
[1680654065101,1.142,1870.2,1870.0,0.76999574]
[1680654067522,1.142,1870.2,1870.0,1.25127574]
[1680654070644,1.142,1870.2,1870.0,0.76999574]
[1680654071895,1.142,1870.2,1870.0,0.52936574]
[1680654072111,1.142,1870.2,1870.0,0.77000574]
[1680654073315,9.4708,1870.5,1870.2,0.24061]
[1680654073316,0.002,1870.5,1870.2,0.24061]
[1680654073556,1.142,1870.6,1870.3,2.76602218]
[1680654074558,1.142,1870.6,1870.2,3.008]
[1680654074859,0.002,1870.7,1870.3,2.76602218]
[1680654075072,0.10500051,1870.9,1870.4,10.3331]
[1680654075210,0.10500051,1870.9,1870.5,2.76602218]
[1680654075410,0.10500051,1870.9,1870.6,0.24056]
[1680654075658,0.10500051,1870.9,1870.7,0.193]
[1680654075873,1.21815056,1870.9,1870.7,0.193]
[1680654077454,0.10500051,1870.9,1870.8,2.76602218]
[1680654077657,0.10500051,1870.9,1870.6,0.002]
[1680654077844,0.10500051,1870.9,1870.8,0.24053]
[1680654078160,0.10500051,1870.9,1870.7,0.44253]
[1680654079815,0.10500051,1870.9,1870.7,0.202]
[1680654079977,0.22970056,1870.9,1870.7,0.202]
[1680654080592,0.22970056,1870.9,1870.7,0.44254]
[1680654080797,0.22970056,1870.9,1870.8,0.35592973]
[1680654081011,0.10500051,1870.9,1870.8,0.35592973]
[1680654081327,0.10500051,1870.9,1870.8,0.59645973]
[1680654082192,0.10500051,1870.9,1870.8,0.35592973]
[1680654083225,1.24600051,1870.9,1870.8,0.35592973]
[1680654083393,0.10500051,1870.9,1870.8,3.36248191]
[1680654084228,0.10500051,1870.9,1870.8,3.12195191]
[1680654084426,0.10500051,1870.9,1870.8,3.36248191]
[1680654084583,0.10500051,1870.9,1870.8,0.35592973]
[1680654085591,1.24600051,1870.9,1870.8,0.35592973]
[1680654085785,1.37060056,1870.9,1870.8,0.35592973]
[1680654086683,1.37060056,1870.9,1870.8,3.12195191]
[1680654086684,0.10500051,1870.9,1870.8,3.12195191]
[1680654086891,0.10500051,1870.9,1870.8,0.35592973]
[1680654087431,0.10190506,1870.9,1870.8,0.59645973]
[1680654088090,0.10190506,1870.9,1870.8,0.35592973]
[1680654089788,1.63554557,1870.9,1870.8,0.35592973]
[1680654089989,1.36829557,1870.9,1870.8,0.35592973]
[1680654090183,1.63554557,1870.9,1870.8,0.35592973]
[1680654091325,1.24390506,1870.9,1870.8,0.35592973]
[1680654091512,1.51115506,1870.9,1870.8,0.35592973]
[1680654092492,1.24390506,1870.9,1870.8,0.35592973]
[1680654094899,1.24390506,1870.9,1870.8,0.59645973]
[1680654095803,1.24390506,1870.9,1870.8,0.35592973]
[1680654096029,0.10190506,1870.9,1870.8,0.35592973]
[1680654096752,0.10190506,1870.9,1870.8,0.4357777]
[1680654097353,0.10190506,1870.9,1870.8,0.6763077]
[1680654099745,0.10190506,1870.9,1870.8,0.4357777]
[1680654099945,0.10190506,1870.9,1870.8,0.35592973]
[1680654100346,1.24390506,1870.9,1870.8,0.35592973]
[1680654102053,0.10190506,1870.9,1870.8,0.35592973]
[1680654103447,0.10190506,1870.9,1870.8,0.59645973]
[1680654103638,0.10190506,1870.9,1870.8,3.36248191]
[1680654103947,0.10190506,1870.9,1870.8,3.7189301]
[1680654104151,0.10190506,1870.9,1870.8,4.2000001]
[1680654104849,0.10190506,1870.9,1870.8,0.95290792]
[1680654105025,0.10190506,1870.9,1870.8,0.59645973]
[1680654105923,0.10190506,1870.9,1870.8,9.49255191]
[1680654106124,0.10190506,1870.9,1870.8,17.56445191]
[1680654106344,0.10190506,1870.9,1870.8,17.56645191]
[1680654106539,0.10190506,1870.9,1870.8,17.57045191]
[1680654106774,0.10190506,1870.9,1870.8,20.3987331]
[1680654108369,0.10190506,1870.9,1870.8,20.3947331]
[1680654108568,0.10190506,1870.9,1870.8,20.3967331]
[1680654108782,0.11000001,1871.1,1870.8,21.5297331]
[1680654108977,0.11000001,1871.1,1871.0,8.41502218]
[1680654109184,0.11000001,1871.1,1871.0,11.2651044]
[1680654109347,0.11000001,1871.1,1871.0,14.4951044]
[1680654109546,0.11000001,1871.1,1871.0,14.51701303]
[1680654109869,0.0745989,1871.1,1871.0,14.51701303]
[1680654110635,0.0394294,1871.1,1871.0,14.86870801]
[1680654110837,0.11000001,1871.4,1871.1,2.2]
[1680654111032,0.11000001,1871.4,1871.3,9.55402218]
[1680654111033,1e-08,1871.4,1871.3,9.55402218]
[1680654111233,1e-08,1871.4,1871.3,10.27743218]
[1680654111452,1e-08,1871.4,1871.3,13.50743218]
[1680654112352,1e-08,1871.4,1871.3,16.72643218]
[1680654112570,1e-08,1871.4,1871.3,20.03264703]
[1680654112778,1e-08,1871.4,1871.3,21.42042957]
[1680654113139,1e-08,1871.4,1871.3,20.28242957]
[1680654113338,0.11000001,1871.9,1871.7,0.5]
[1680654113576,0.11000001,1871.9,1871.8,11.46289218]
[1680654113746,0.11000001,1871.9,1871.8,11.46489218]
[1680654113946,0.11000001,1871.9,1871.8,14.46489218]
[1680654115483,0.11000001,1871.9,1871.8,14.48679143]
[1680654118788,0.11000001,1871.9,1871.8,14.82688306]
[1680654118989,0.11000001,1871.9,1871.8,18.36573137]
[1680654119158,0.11000001,1871.9,1871.8,17.23073137]
[1680654120309,0.11000001,1871.9,1871.8,18.36373137]
[1680654120891,0.11000001,1871.9,1871.8,18.89244791]
[1680654121508,1e-08,1871.9,1871.8,18.89244791]
[1680654121709,0.11000001,1872.3,1872.0,5.649]
[1680654121910,0.11000001,1872.3,1872.0,17.75733218]
[1680654122234,0.11000001,1872.3,1872.0,17.96133218]
[1680654122897,0.07606732,1872.1,1872.0,17.96133218]
[1680654123614,0.08606733,1872.3,1872.0,17.96133218]
[1680654123832,0.08606733,1872.3,1872.2,8.41502218]
[1680654124120,0.08606733,1872.3,1872.2,13.3025844]
[1680654124281,0.08606733,1872.3,1872.2,13.4515844]
[1680654124855,0.05238076,1872.3,1872.2,13.4515844]
[1680654125056,0.05238076,1872.3,1872.2,13.2525844]
[1680654125258,0.05238076,1872.3,1872.2,13.4825844]
[1680654125753,0.01886263,1872.3,1872.2,13.73676573]
[1680654126963,1.142,1872.8,1872.2,13.7586603]
[1680654127125,1.142,1872.8,1872.4,0.24032]
[1680654127321,1.142,1872.8,1872.3,9.12969]
[1680654127322,1.142,1872.8,1872.5,2.76602218]
[1680654127945,1.142,1872.8,1872.5,3.48697218]
[1680654128115,1.142,1872.8,1872.5,3.63397218]
[1680654128513,1.15,1873.0,1872.5,3.63397218]
[1680654128877,0.008,1873.0,1872.7,5.649]
[1680654129034,0.008,1873.0,1872.8,8.41502218]
[1680654129369,0.11800001,1873.1,1872.9,8.64502218]
[1680654129515,0.11000001,1873.1,1873.0,13.9613044]
[1680654129719,0.11000001,1873.1,1873.0,14.1933044]
[1680654129945,0.11000001,1873.5,1873.1,0.5]
[1680654130128,0.11000001,1873.5,1873.4,11.23343218]
[1680654130348,0.57236329,1874.0,1873.4,11.46543218]
[1680654130557,0.01509073,1874.0,1873.9,8.41502218]
[1680654130713,0.01509073,1874.0,1873.9,8.2395044]
[1680654130915,0.002,1874.7,1874.2,5.649]
[1680654131119,0.03733141,1875.1,1874.2,5.649]
[1680654131120,0.03135797,1875.4,1874.7,8.862]
[1680654131333,0.03135797,1875.4,1875.3,8.40902218]
[1680654131334,0.03435797,1875.4,1875.3,8.40902218]
[1680654131615,0.03435797,1875.4,1875.3,16.6248844]
[1680654131616,0.03135797,1875.4,1875.3,16.6248844]
[1680654131816,0.00035797,1875.4,1875.3,16.8548844]
[1680654132033,1.12657649,1876.6,1875.5,5.643]
[1680654132034,0.009,1876.4,1875.5,5.643]
[1680654132322,1.142,1876.3,1875.7,0.2399]
[1680654132479,0.009,1876.4,1875.9,0.155]
[1680654132637,1.151,1876.6,1876.0,2.76602218]
[1680654132973,1.20205,1876.8,1876.0,2.76602218]
[1680654132974,0.1142,1876.5,1876.0,2.6778724]
[1680654133138,0.06005,1876.8,1876.0,2.6778724]
[1680654133330,1.142,1876.6,1876.2,0.157]
[1680654133668,1.142,1876.6,1876.1,2.76602218]
[1680654133669,1.142,1876.6,1876.4,0.072]
[1680654133874,0.1142,1876.5,1876.4,0.072]
[1680654134078,0.1142,1876.5,1876.0,0.02185023]
[1680654134240,0.1142,1876.5,1875.6,0.008]
[1680654134241,1.141,1876.2,1875.6,0.008]
[1680654134425,1.141,1876.2,1875.9,0.041]
[1680654134426,0.1141,1876.1,1875.9,0.041]
[1680654134781,1.142,1876.0,1875.7,0.002]
[1680654134937,1.2562,1875.9,1875.1,0.008]
[1680654135280,1.2562,1875.9,1875.1,0.002]
[1680654135281,1.142,1875.9,1875.1,0.002]
[1680654135571,1.142,1875.7,1875.0,0.008]
[1680654135736,1.40857,1875.7,1875.0,2.36790306]
[1680654135940,0.38168106,1875.6,1875.1,2.37483371]
[1680654136162,1.52368106,1875.6,1875.1,2.37483371]
[1680654136345,1.142,1875.6,1875.1,2.37483371]
[1680654137037,1.142,1875.6,1875.0,0.02186189]
[1680654137237,9.5175,1875.9,1875.0,2.39729303]
[1680654137238,2.275,1875.5,1875.0,2.39729303]
[1680654137555,2.275,1875.5,1875.0,0.02786189]
[1680654137873,0.2275,1875.4,1875.1,2.37977939]
[1680654138240,0.002,1875.7,1875.2,2.40073968]
[1680654138455,0.13128208,1876.2,1875.2,5.64070968]
[1680654138657,0.13128208,1876.2,1875.3,0.24007397]
[1680654138973,2.268,1876.1,1875.4,2.36983484]
[1680654139175,2.275,1875.9,1875.3,5.37673196]
[1680654139335,2.275,1875.9,1875.3,2.37673196]
[1680654139685,2.275,1875.9,1875.4,2.37714128]
[1680654139889,0.2275,1875.8,1875.4,2.37714128]
[1680654140089,0.002,1876.1,1875.5,0.23]
[1680654140291,2.40828208,1876.2,1875.6,2.76602218]
[1680654140292,0.13128208,1876.2,1875.6,2.76602218]
[1680654140489,0.13128208,1876.2,1875.7,0.23]
[1680654140691,0.13128208,1876.2,1875.8,2.76602218]
[1680654142075,2.275,1876.1,1875.8,2.76602218]
[1680654142278,2.275,1876.1,1875.7,0.008]
[1680654142589,2.275,1876.1,1875.6,0.02185489]
[1680654142794,0.2275,1876.0,1875.3,3.006]
[1680654142949,0.2275,1876.0,1875.4,2.76602218]
[1680654143150,0.2275,1876.0,1875.5,3.0]
[1680654143459,0.2275,1876.0,1875.6,8.41105101]
[1680654143698,0.2275,1876.0,1875.6,2.76405101]
[1680654143894,2.4965,1876.0,1875.5,3.002]
[1680654144136,2.253,1875.7,1875.3,0.002]
[1680654144334,2.253,1875.7,1875.4,2.76602218]
[1680654144629,2.253,1875.7,1875.3,0.002]
[1680654144850,0.2253,1875.7,1875.4,2.76602218]
[1680654145006,2.264,1875.9,1875.4,2.76602218]
[1680654146397,0.009,1876.1,1875.5,5.879]
[1680654146398,2.262,1876.1,1875.5,5.879]
[1680654146598,2.253,1876.1,1875.6,5.76602218]
[1680654146798,0.2253,1876.0,1875.6,11.41702218]
[1680654147199,0.2253,1876.0,1875.6,11.65693218]
[1680654147544,0.2253,1876.0,1875.6,11.65694218]
[1680654147699,0.2253,1876.0,1875.6,11.41702218]
[1680654148225,0.2253,1876.0,1875.6,3.002]
[1680654148443,2.275,1875.9,1875.5,0.002]
[1680654148614,2.284,1876.1,1875.5,6.00594218]
[1680654148821,0.2284,1876.0,1875.5,6.00794218]
[1680654148986,0.14028208,1876.2,1875.6,8.41502218]
[1680654149327,0.13128208,1876.2,1876.0,5.649]
[1680654149530,0.13128208,1876.2,1876.1,8.65487218]
[1680654149712,0.13128208,1876.2,1876.1,8.41702218]
[1680654150125,0.13128208,1876.2,1876.1,0.002]
[1680654150333,0.13128208,1876.2,1876.0,0.23986]
[1680654150630,0.13128208,1876.2,1876.1,2.76602218]
[1680654151007,0.13128208,1876.2,1876.0,0.002]
[1680654151346,0.13128208,1876.2,1876.0,2.76602218]
[1680654151647,0.13128208,1876.2,1875.9,8.89088]
[1680654151856,0.13128208,1876.2,1876.1,2.76602218]
[1680654152343,0.13128208,1876.2,1876.1,8.41502218]
[1680654152532,0.13128208,1876.2,1876.1,8.41702218]
[1680654152701,0.13128208,1876.2,1876.1,2.76802218]
[1680654152901,0.13128208,1876.2,1876.1,2.76602218]
[1680654153354,0.13128208,1876.2,1876.1,8.41502218]
[1680654153547,0.13128208,1876.2,1876.1,8.41702218]
[1680654153938,0.13128208,1876.2,1876.1,2.76802218]
[1680654154116,0.13128208,1876.2,1876.0,0.002]
[1680654154320,0.13128208,1876.2,1875.6,0.23992]
[1680654154522,0.36971029,1876.2,1875.7,2.76602218]
[1680654155071,0.13128208,1876.2,1875.8,5.649]
[1680654155271,0.13128208,1876.2,1875.9,8.41502218]
[1680654155487,0.13128208,1876.2,1876.1,8.41502218]
[1680654155689,0.13128208,1876.2,1876.1,2.76802218]
[1680654155857,0.13128208,1876.2,1876.1,2.76602218]
[1680654156259,0.13128208,1876.2,1876.0,0.24186]
[1680654156564,0.13128208,1876.2,1875.9,0.29951506]
[1680654156887,0.13128208,1876.2,1875.8,0.23989]
[1680654157073,0.13128208,1876.2,1875.9,2.76602218]